Cogmind - Beta 15 @@@ ROGUE MODE // 2025.07.21 @ 21:47:18 Player: Ladmageddon Result: Destroyed by X-57 Shotgunner with Shotgun Performance ------------- Evolutions (2) 1000 Regions Visited (3) 600 Robots Destroyed (46) 230 Value Destroyed (1138) 1138 Prototype IDs (1) 20 Alien Tech Used (0) 0 Bonus (0) 0 TOTAL SCORE: 2988 Bonus ------- None Cogmind --------- Core Integrity 0/550 Matter 253/300 Energy 26/100 System Corruption 0% Temperature Cool (0) Movement Core (750) Ox14 Location -8/Materials Parts ------- > --- POWER (3) -------- (None) > --- PROPULSION (2) --- (None) > --- UTILITY (4) ------ Heat Sink High-capacity Storage Unit Target Analyzer ECM Suite > --- WEAPON (2) ------- Advanced Beam Rifle > --- INVENTORY (20) --- Improved Heat Sink Improved Targeting Computer ECM Suite Small Laser Small Laser Advanced Beam Rifle Datajack Plasma Cutter Mining Claw Mining Claw Peak State ------------ > --- POWER ------------ Light Deuterium Engine Light Nuclear Core > --- PROPULSION ------- Light Treads Armored Treads > --- UTILITY ---------- Heat Sink High-capacity Storage Unit Target Analyzer ECM Suite > --- WEAPON ----------- Particle Gun High-powered Shotgun > --- INVENTORY -------- Wheel Heat Sink Improved Heat Sink Improved Targeting Computer ECM Suite Small Laser Small Laser Particle Gun Advanced Beam Rifle Advanced Beam Rifle Grenade Launcher Datajack Plasma Cutter Mining Claw Mining Claw [Rating: 23] Favorites ----------- Power Ion Engine Engine Ion Engine Power Core Light Nuclear Core Propulsion Light Treads Treads Light Treads Wheel Wheel Utility High-capacity Storage Unit Device ECM Suite Storage High-capacity Storage Unit Processor Target Analyzer Protection Light Armor Plating Weapon Assault Rifle Energy Gun Beam Rifle Energy Cannon Beam Cannon Ballistic Gun Assault Rifle Launcher Grenade Launcher Slashing Weapon Mining Claw Build | -11 -10 -9 -8 ------- Run | Yrd Mat Mat Mat Slots Evolved 4 | . . 2 2 Power 2 | . . . 2 Propulsion . | . . . . Utility 2 | . . 2 . Weapon . | . . . . Parts Attached 40 | 7 7 16 10 Power 6 | 1 . 3 2 Engine 5 | 1 . 3 1 Core 1 | . . . 1 Reactor . | . . . . Propulsion 8 | 3 . 3 2 Treads 5 | 1 . 3 1 Leg . | . . . . Wheel 3 | 2 . . 1 Hover . | . . . . Flight . | . . . . Utility 13 | 1 3 8 1 Device 8 | . 1 6 1 Storage 3 | 1 2 . . Processor 1 | . . 1 . Hackware . | . . . . Protection 1 | . . 1 . Artifact . | . . . . Weapon 13 | 2 4 2 5 Energy Gun 6 | . 2 1 3 Energy Cannon 1 | . . 1 . Ballistic Gun 4 | 2 1 . 1 Ballistic Cannon . | . . . . Launcher 1 | . . . 1 Special Weapon . | . . . . Impact Weapon . | . . . . Slashing Weapon 1 | . 1 . . Piercing Weapon . | . . . . Special Melee Weapon . | . . . . Unidentified Prototypes 1 | . . . 1 Parts Lost 29 | . . 14 15 Power 6 | . . 3 3 Propulsion 6 | . . 2 4 Utility 7 | . . 6 1 Weapon 10 | . . 3 7 Highest Loss Streak 7 | . . 4 7 To Critical Strikes . | . . . . Average Backups 10 | 4 10 9 14 Power . | . 1 . . Propulsion 1 | 1 2 1 1 Utility 2 | . 2 1 3 Weapon 5 | . 4 5 7 Tool/Special . | . . . . Unused Backups 8 | . . . 8 Power . | . . . . Propulsion . | . . . . Utility 3 | . . . 3 Weapon 3 | . . . 3 Tool/Special 2 | . . . 2 Average Slot Usage (%) 85 | . 98 85 77 Engine 9 | . 14 10 5 Treads 13 | . . 17 15 Wheel 7 | . 28 3 . Device 18 | . 11 21 16 Storage 11 | . 14 11 9 Processor 3 | . . 1 9 Protection 1 | . . 2 . Energy Gun 5 | . 5 3 9 Energy Cannon 2 | . . 3 . Ballistic Gun 11 | . 20 10 8 Peak Build Rating 23 | 6 8 14 23 Average Rating 10 | 4 7 9 14 On Entrance 6 | . 6 8 12 Naked Turns . | . . . . Heaviest Build 58 | 14 50 58 57 Greatest Support 40 | 20 20 40 40 Greatest Overweight (x) 13 | . 2 13 2 Average Overweight (x) 1 | . 1 1 1 Largest Inventory Capacity 20 | 8 20 20 20 Average Capacity 19 | 6 17 20 20 Most Carried 18 | 6 11 15 18 Average Carried 10 | 4 10 9 14 Final Capacity 20 | 8 20 20 20 Final Carried 11 | 6 11 8 10 Class Distribution -------------------- 68% | Mutant 31% | Scavenger-Mutant Dominant Class ---------------- Mutant | -10/Materials Mutant | -9/Materials Scavenger-Mutant | -8/Materials Resources | -11 -10 -9 -8 ----------- Run | Yrd Mat Mat Mat Matter Collected 997 | 203 153 493 148 Remotely 153 | . 153 . . Salvage Created 1381 | 97 153 638 493 Parts 101 | 5 24 51 21 Haulers Intercepted 2 | . 1 . 1 Recyclers Shooed 1 | . . 1 . Parts Field Recycled . | . . . . Retrieved Matter . | . . . . Parts Self-Destructed . | . . . . Prevented . | . . . . Kills | -11 -10 -9 -8 ------- Run | Yrd Mat Mat Mat Combat Hostiles Destroyed 31 | . 2 20 9 Guns 24 | . 2 13 9 Cannons 7 | . . 7 . Classes Destroyed 10 | 2 5 3 . Worker 4 | . 2 1 1 Builder 4 | . 3 . 1 Tunneler 2 | 1 . 1 . Hauler 2 | . 1 . 1 Recycler 1 | 1 . . . Watcher 2 | . 1 . 1 Swarmer 10 | . . 10 . Grunt 17 | . 2 6 9 Brawler 1 | . . 1 . Sentry 3 | . . 3 . Best Kill Streak 8 | 2 8 5 3 Combat Bots Only 3 | . 2 3 3 Max Kills in Single Turn 4 | 1 4 1 1 Gunslinging . | . . . . Exploded . | . . . . Melee . | . . . . Uniques/NPCs Destroyed . | . . . . Combat | -11 -10 -9 -8 -------- Run | Yrd Mat Mat Mat Hostile Shots Fired 373 | . 18 192 163 Missed 109 | . 4 50 55 Hits 264 | . 14 142 108 Projectile 264 | . 14 142 108 Critical Strikes 7 | . . 3 4 Damage Taken 3492 | . 154 1409 1929 Core 902 | . 34 308 560 Absorbed by Shields 20 | . . 20 . Core Remaining (%) 69 | 100 86 23 . Volleys Fired 164 | 6 27 84 47 Largest 2 | 2 2 2 2 Hottest 126 | 40 60 80 126 Shots Fired 291 | 12 54 136 89 Gun 254 | 12 54 101 87 Cannon 35 | . . 35 . Launcher 2 | . . . 2 Special . | . . . . Kinetic 174 | 12 44 81 37 Thermal 107 | . 6 55 46 Explosive 2 | . . . 2 Electromagnetic 8 | . 4 . 4 Robot Hit Streak 17 | 11 17 8 15 Robot Miss Streak 5 | . 1 5 3 Penetration Max . | . . . . Secondary Targets 2 | . . 1 1 Max Gunslinging Chain 1 | . . 1 1 Shots Hit Robots 172 | 11 16 78 67 Core Hits 76 | 3 13 29 31 Critical Kills . | . . . . Critical Parts Destroyed . | . . . . Critical Strikes 2 | . . . 2 Burn 2 | . . . 2 Melee Attacks 2 | . 2 . . Impact . | . . . . Slashing 2 | . 2 . . Piercing . | . . . . Sneak Attacks . | . . . . Combat Hostiles . | . . . . Follow-up Attacks . | . . . . Damage Inflicted 3107 | 150 591 1131 1235 Guns 2076 | 150 163 700 1063 Cannons 424 | . . 424 . Explosions 597 | . 428 . 169 Melee . | . . . . Ramming 10 | . . 7 3 Kinetic 1275 | 150 150 520 455 Thermal 1139 | . . 604 535 Explosive 597 | . 428 . 169 Electromagnetic 86 | . 13 . 73 Impact . | . . . . Slashing . | . . . . Piercing . | . . . . Highest Corruption 4 | . 4 1 . Average Corruption 1 | . 3 1 . Corruption Purged . | . . . . Corruption Blocked . | . . . . Effects 2 | . . 2 . Message Errors 1 | . . 1 . Data Loss (minor) 1 | . . 1 . Overload Shots . | . . . . Overflow Damage . | . . . . Projectiles . | . . . . Explosions . | . . . . Melee . | . . . . Knockbacks . | . . . . Impact . | . . . . Kinetic . | . . . . Secondary . | . . . . Self-Inflicted Damage 77 | . . 1 76 Shots 2 | . . . 2 Rammed 4 | . . 4 . Targets Rammed 5 | . . 4 1 Kicked . | . . . . Crushed 1 | . . . 1 Highest Temperature 159 | . 40 159 46 Average Temperature 28 | . 16 35 19 Received Heat Transfer 1129 | . 84 352 693 Siege Activations . | . . . . Martial Activations . | . . . . Shielding Activations . | . . . . Robots Disrupted . | . . . . Combat Hostiles . | . . . . Robots Corrupted . | . . . . Combat Hostiles . | . . . . Parts Fried . | . . . . Impact Corruptions . | . . . . Robots Melted . | . . . . Combat Hostiles . | . . . . Parts Melted 2 | . . 2 . Heat Transferred 2766 | . . 1323 1443 Parts Sabotaged . | . . . . Parts Stolen . | . . . . Parts Stripped . | . . . . Power Chain Reactions . | . . . . Alert | -11 -10 -9 -8 ------- Run | Yrd Mat Mat Mat Maximum Alert Level . | . . . . Low Security (%) 100 | 100 100 100 100 Level 1 . | . . . . Level 2 . | . . . . Level 3 . | . . . . Level 4 . | . . . . Level 5 . | . . . . High Security . | . . . . Max Security . | . . . . Peak Influence 189 | 5 189 112 50 Initial 58 | . 3 58 42 Average 40 | 1 63 42 22 Influence Increases 1030 | 10 239 520 261 Destroy 0b10 Robot/C 620 | . 40 400 180 Destroy 0b10 Robot/NC 75 | 10 35 10 20 Destroy Leader 128 | . 14 80 34 Disable Machine 120 | . 120 . . Destroy Structure 42 | . 30 . 12 Lose Combat Pursuer 45 | . . 30 15 Influence Decreases 1021 | 5 105 559 352 Entered New Map 141 | . 2 81 58 Time Decay 654 | 5 103 364 182 Lost Part 226 | . . 114 112 Squads Dispatched 7 | . 1 1 5 Investigation 1 | . . . 1 Extermination . | . . . . Reinforcement 6 | . 1 1 4 Assault . | . . . . Garrison . | . . . . Intercept . | . . . . Searches Triggered . | . . . . Construction Impeded . | . . . . Haulers Reinforced . | . . . . Active Scanning Responses . | . . . . Cargo Convoy Interrupts . | . . . . Stealth | -11 -10 -9 -8 --------- Run | Yrd Mat Mat Mat Distress Signals 5 | . . 3 2 Communications Jammed . | . . . . Distress Signals . | . . . . Times Spotted 68 | . 8 32 28 Peak Tracking Total 8 | . 3 5 8 Tactical Retreats 11 | . . 6 5 Traps | -11 -10 -9 -8 ------- Run | Yrd Mat Mat Mat Traps Triggered 6 | . 2 3 1 Indirectly . | . . . . Trap Hack Attempts . | . . . . Triggered . | . . . . Disarmed . | . . . . Reprogrammed . | . . . . Reused . | . . . . Traps Extracted . | . . . . Installed . | . . . . Triggered . | . . . . Machines | -11 -10 -9 -8 ---------- Run | Yrd Mat Mat Mat Machines Disabled 8 | . 8 . . Max in Single Turn 2 | . 2 . . Machines Repaired . | . . . . Machines Dismantled . | . . . . Machines Sabotaged . | . . . . Overloaded Fab Kills . | . . . . Hacking | -11 -10 -9 -8 --------- Run | Yrd Mat Mat Mat Machines Accessed 1 | . . 1 . Terminals 1 | . . 1 . Fabricators . | . . . . Repair Stations . | . . . . Recycling Units . | . . . . Scanalyzers . | . . . . Garrison Access . | . . . . Total Hacks 1 | . . 1 . Successful . | . . . . Failed 1 | . . 1 . Catastrophic 1 | . . 1 . Database Lockouts . | . . . . Manual . | . . . . Terminals 1 | . . 1 . Fabricators . | . . . . Repair Stations . | . . . . Recycling Units . | . . . . Scanalyzers . | . . . . Garrison Access . | . . . . Terminal Hacks . | . . . . Fabricator Hacks . | . . . . Repair Station Hacks . | . . . . Recycling Unit Hacks . | . . . . Scanalyzer . | . . . . Garrison Access Hacks . | . . . . Unauthorized Hacks . | . . . . Terminals . | . . . . Fabricators . | . . . . Repair Stations . | . . . . Recycling Units . | . . . . Scanalyzers . | . . . . Garrison Access . | . . . . Data Cores Recovered . | . . . . Used . | . . . . Hacking Detections . | . . . . Full Trace Events . | . . . . Feedback Events . | . . . . Feedback Blocked . | . . . . Robot Schematics Acquired . | . . . . Robots Built . | . . . . Authchips . | . . . . Time . | . . . . Total Robot Build Rating . | . . . . Part Schematics Acquired . | . . . . Parts Built . | . . . . Authchips . | . . . . Time . | . . . . Total Part Build Rating . | . . . . Parts Repaired . | . . . . Time . | . . . . Parts Recycled . | . . . . Recycled Matter . | . . . . Retrieved Matter . | . . . . Retrieved Components . | . . . . Parts Scanalyzed . | . . . . Part Schematics Acquired . | . . . . Parts Damaged . | . . . . Bothacking | -11 -10 -9 -8 ------------ Run | Yrd Mat Mat Mat Used RIF Installer . | . . . . Robots Hacked . | . . . . Non-combat . | . . . . Combat . | . . . . Robot Hacks Applied . | . . . . Relay Couplers Released . | . . . . Fabnet Peak Effective % . | . . . . Robots Rewired . | . . . . Allies Hacked . | . . . . Hacks Repelled . | . . . . Allies | -11 -10 -9 -8 -------- Run | Yrd Mat Mat Mat Total Allies . | . . . . Largest Group . | . . . . Highest-Rated Group . | . . . . Highest-Rated Ally . | . . . . Total Orders . | . . . . Ally Attacks . | . . . . Total Damage . | . . . . Kills . | . . . . Allies Corrupted . | . . . . Allies Melted . | . . . . Intel | -11 -10 -9 -8 ------- Run | Yrd Mat Mat Mat Active Infowar (turns) 697 | . . 627 70 Terrain 101 | . . 101 . Seismic 305 | . . 305 . ECM 696 | . . 626 70 Robot Analysis Total . | . . . . Derelict Logs Recovered . | . . . . Drone Launches . | . . . . Drone Recoveries . | . . . . Exploration | -11 -10 -9 -8 ------------- Run | Yrd Mat Mat Mat Turns Passed 1983 | 59 389 1019 516 Spaces Moved 799 | 34 289 343 133 Core 17 | 11 . 6 . Treads 387 | 1 . 253 133 Legs . | . . . . Wheels 395 | 22 289 84 . Hover . | . . . . Flight . | . . . . Fastest Speed 50 | 50 80 110 240 Average Speed 174 | 72 100 218 248 Slowest Speed 700 | 160 110 700 330 Overloaded Moves . | . . . . Propulsion Burnouts . | . . . . Robots Hopped . | . . . . Potential Cave-ins . | . . . . Cave-ins Triggered . | . . . . Exploration Rate (%) 27 | 3 54 32 20 Regions Visited 3 Branch Regions . Pre-discovered Areas . | . . . . Known Exits Taken . | . . . . Unknown Exits Taken 3 | 1 1 1 . Scrap Searched . | . . . . Spaces Dug . | . . . . Terrain Destroyed 38 | . 28 . 10 Melee . | . . . . Projectile . | . . . . AOE 38 | . 28 . 10 Terrain Rammed . | . . . . Walls Destroyed . | . . . . Machines Disabled . | . . . . Actions | -11 -10 -9 -8 --------- Run | Yrd Mat Mat Mat Total 1090 | 53 333 476 228 Wait 23 | . . . 23 Move 796 | 33 288 342 133 Hop . | . . . . Pick Up 47 | 7 6 21 13 Fast Attach 6 | 5 1 . . Attach 36 | 1 2 22 11 Detach 1 | . 1 . . Swap 6 | 1 4 1 . Drop 4 | . 2 2 . Fire 164 | 6 27 84 47 Melee 2 | . 2 . . Ram 1 | . . 1 . Kick . | . . . . Crush 4 | . . 3 1 Escape Stasis . | . . . . Rewire . | . . . . Trap . | . . . . Miscellaneous . | . . . . Route ------- -11/Scrapyard -10/Materials -9/Materials -8/Materials History --------- Turn | Location | Event 6 | -11/Scrapyard | Discovered new exit (range 15) 60 | -11/Scrapyard | Entered Materials 320 | -10/Materials | Build established: Mutant 437 | -10/Materials | Discovered new exit (range 4) 449 | -10/Materials | Entered another Materials area 449 | -9/Materials | Evolved 2 slots: Utility x2 592 | -9/Materials | Lost 3 parts (2u1w) 1160 | -9/Materials | Core integrity fell below 50% 1215 | -9/Materials | Lost 4 parts (2n2w) 1432 | -9/Materials | Discovered new exit (range 15) 1468 | -9/Materials | Entered another Materials area 1468 | -8/Materials | Evolved 2 slots: Power x2 1544 | -8/Materials | Build established: Scavenger-Mutant 1928 | -8/Materials | Lost 7 parts (2p2n1u2w) 1961 | -8/Materials | Core integrity fell below 50% 1975 | -8/Materials | Core integrity fell below 20% 1984 | -8/Materials | Destroyed by X-57 Shotgunner with Shotgun Last Messages --------------- H-61 Shepherd calls for reinforcements. ALERT: Hostile activity reported, dispatching reinforcements to area. Slug penetrates Wall. K-01 Serf collects debris. Knocked back. K-01 Serf collects debris. Identified Adv. Beam Rifle. K-01 Serf collects debris. U-05 Engineer lays Concrete. K-01 Serf collects debris. U-05 Engineer lays Concrete. Wheel destroyed. Knocked back. K-01 Serf collects debris. U-05 Engineer lays Concrete. K-01 Serf collects debris. U-05 Engineer builds a Wall. Knocked back. Particle Gun destroyed. Map ----- +----------------------------------------------------+ | ?????????????????????????????????????????????????? | | ?????????????????????????????????????????????????? | | ?????????????????????????????????????????????????? | | ?????????????????????????????????????????????????? | | ?????????????????????????????????????????????????? | | ?????????????????????????????????????????????????? | | ???????????????????????????????? ??????????????? | | ???????????????????????????????# #?????????????? | | ?????????????????????????#?????# #?????????????? | | ???????????????????????? ??## ##????????????? | | ????????????????????#???" ??# ###/?????????? | | ????????????????????# """ [ ??# ??????????? | | ????????????????????? """ ??+ ???????????? | | ?????????????????????? ??# ????????????? | | ??????????????????????? ??? ?????????????? | | ???????????????????????? ???# #?????????????? | | ????????????????????????? ???# =#???########### | | ????????????????????????## #####a*%##??# # | | ?????????????????## ##### w %;#??# # | | ??????????????#### [[%[= % ##### """ # | | ?????????????? [k[ %+% """ # | | ?????????????????# %!% ##### / """ # | | ?????????????????????###### H[ ##"#???# / # | | ??????????????????????# % #?##???# = # | | ??????????????????????# % #??????# %!= % # | | ??????????????????????# @ ##???###########+## | | ??????????????????????# % x #????# [ | | ?????????????????????#; #????# | | ????????????????????# # x/ | | ????????????????????#?; #######+########### | | ?????????????????????## #?????????????????? | | ??????????????????????# #?????????????????? | | ??????????????????????####;#####?????????????????? | | ?????????????????????????###?????????????????????? | | ?????????????????????????????????????????????????? | | ?????????????????????????????????????????????????? | | ?????????????????????????????????????????????????? | | ?????????????????????????????????????????????????? | | ?????????????????????????????????????????????????? | | ?????????????????????????????????????????????????? | | ?????????????????????????????????????????????????? | | ?????????????????????????????????????????????????? | | ?????????????????????????????????????????????????? | | ?????????????????????????????????????????????????? | | ?????????????????????????????????????????????????? | | ?????????????????????????????????????????????????? | | ?????????????????????????????????????????????????? | | ?????????????????????????????????????????????????? | | ?????????????????????????????????????????????????? | | ?????????????????????????????????????????????????? | +----------------------------------------------------+ Best States ------------- Heat Dissipation 41 Energy Generation 23 Energy Capacity 250 Matter Stores 300 Matter Capacity 300 Sight Range 16 Terrain Scan Range 16 Terrain Scan Density 10 ECM Strength 1 Armor Coverage 150 Evasion (%) 50 Target Analysis 5 Recoil Reduction 2 Item Schematics ----------------- None Robot Schematics ------------------ None Fabricated ------------ Nothing Repaired ---------- Nothing Alien Tech Used ----------------- None Achievements -------------- None Challenges ------------ None Game ------ Seed ShadeZioniteReactor Manual? 0 Play Time 00:21:49 Cumulative 19.5 hours Start 2025.07.21 @ 21:27:26 End 2025.07.21 @ 21:47:18 Sessions 1 Manual Loads 0 Difficulty Rogue Special Mode None Game No. 47 Rogue 44 Adventurer 3 Explorer 0 Win Type - Total 0 Types 0/0/0/0/0/0/0/0/0/0 Lore% 12 Gallery% 27 Achievement% 23 Wizard Run 0 Options --------- Layout 1 ASCII 0 Keyboard 0 Movement Mouse Keybinds 0 Fullscreen 1 Font 16/SmallcapsGlow Map View 25x20 Zoom Use 99% Tactical HUD 0 Map Filters NONE Filters NONE Steam SD RUN: e49cda7e-032c-4293-aa03-73282ce662c5